fUST/lending_fUST_20250923
["ID","MTS","AMOUNT","RATE_DAILY","PERIOD"]
[387070517,1758559836346,-153.46837998,0.00020273,2]
[387070519,1758559836356,-489.92,0.00020273,2]
[387070521,1758559836367,-984.69,0.00020273,2]
[387070523,1758559836376,-3142.03,0.00020273,2]
[387070525,1758559836385,-480.0,0.00020273,2]
[387070527,1758559836396,-480.0,0.00020273,2]
[387070529,1758559836405,-480.0,0.00020273,2]
[387070531,1758559836414,-480.0,0.00020273,2]
[387070533,1758559836423,-480.0,0.00020273,2]
[387070535,1758559836434,-480.0,0.00020273,2]
[387070537,1758559836443,-1023.85,0.00020273,2]
[387070539,1758559836453,-1559.89,0.00020273,2]
[387070541,1758559836462,-480.0,0.00020273,2]
[387070543,1758559836472,-480.0,0.00020273,2]
[387070545,1758559836482,-684.8,0.00020273,2]
[387070547,1758559836491,-480.0,0.00020273,2]
[387070549,1758559836500,-480.0,0.00020273,2]
[387070551,1758559836510,-480.0,0.00020273,2]
[387070553,1758559836519,-480.0,0.00020273,2]
[387070555,1758559836528,-480.0,0.00020273,2]
[387070557,1758559836537,-480.0,0.00020273,2]
[387070559,1758559836546,-480.0,0.00020273,2]
[387070561,1758559836555,-480.0,0.00020273,2]
[387070563,1758559836566,-755.15,0.00020273,2]
[387070565,1758559836576,-480.0,0.00020273,2]
[387070567,1758559836586,-480.0,0.00020273,2]
[387070569,1758559836595,-480.0,0.00020273,2]
[387070571,1758559836604,-650.14,0.00020273,2]
[387070573,1758559836614,-480.0,0.00020273,2]
[387070575,1758559836625,-675.96,0.00020273,2]
[387070577,1758559836635,-578.45,0.00020273,2]
[387070579,1758559836644,-534.89618925,0.00020547,2]
[387070581,1758559836653,-480.0,0.00020547,2]
[387070583,1758559836663,-1531.99,0.00020547,2]
[387070585,1758559836673,-480.0,0.00020547,2]
[387070587,1758559836682,-489.92,0.00020547,2]
[387070589,1758559836691,-984.69,0.00020547,2]
[387070591,1758559836701,-3142.03,0.00020547,2]
[387070593,1758559836710,-480.0,0.00020547,2]
[387070595,1758559836719,-480.0,0.00020547,2]
[387070597,1758559836729,-480.0,0.00020547,2]
[387070599,1758559836739,-480.0,0.00020547,2]
[387070601,1758559836748,-480.0,0.00020547,2]
[387070603,1758559836758,-480.0,0.00020547,2]
[387070605,1758559836767,-1023.85,0.00020547,2]
[387070607,1758559836776,-1559.89,0.00020547,2]
[387070609,1758559836786,-480.0,0.00020547,2]
[387070611,1758559836795,-161.44,0.00020547,2]
[387070613,1758559836805,-684.8,0.00020547,2]
[387070615,1758559836814,-480.0,0.00020547,2]
[387070617,1758559836823,-480.0,0.00020547,2]
[387070619,1758559836833,-480.0,0.00020547,2]
[387070621,1758559836843,-480.0,0.00020547,2]
[387070623,1758559836852,-480.0,0.00020547,2]
[387070625,1758559836864,-480.0,0.00020547,2]
[387070627,1758559836873,-480.0,0.00020547,2]
[387070629,1758559836882,-755.15,0.00020547,2]
[387070631,1758559836891,-480.0,0.00020547,2]
[387070633,1758559836900,-480.0,0.00020547,2]
[387070635,1758559836911,-480.0,0.00020547,2]
[387070636,1758559836921,-650.14,0.00020547,2]
[387070638,1758559836931,-480.0,0.00020547,2]
[387070641,1758559836940,-675.96,0.00020547,2]
[387070643,1758559836951,-578.45,0.00020547,2]
[387070645,1758559836960,-420.0,0.00020734,2]
[387070647,1758559836969,-1405.0,0.00020735,2]
[387070649,1758559836978,-480.0,0.00020821,2]
[387070651,1758559836990,-1531.99,0.00020821,2]
[387070653,1758559837001,-480.0,0.00020821,2]
[387070655,1758559837010,-489.92,0.00020821,2]
[387070657,1758559837020,-984.69,0.00020821,2]
[387070659,1758559837029,-3142.03,0.00020821,2]
[387070661,1758559837038,-480.0,0.00020821,2]
[387070663,1758559837047,-480.0,0.00020821,2]
[387070665,1758559837057,-480.0,0.00020821,2]
[387070667,1758559837066,-480.0,0.00020821,2]
[387070669,1758559837075,-480.0,0.00020821,2]
[387070671,1758559837084,-480.0,0.00020821,2]
[387070673,1758559837094,-1023.85,0.00020821,2]
[387070675,1758559837103,-1559.89,0.00020821,2]
[387070677,1758559837113,-480.0,0.00020821,2]
[387070679,1758559837124,-684.8,0.00020821,2]
[387070680,1758559837133,-480.0,0.00020821,2]
[387070682,1758559837142,-480.0,0.00020821,2]
[387070684,1758559837151,-480.0,0.00020821,2]
[387070686,1758559837160,-480.0,0.00020821,2]
[387070688,1758559837169,-480.0,0.00020821,2]
[387070690,1758559837179,-480.0,0.00020821,2]
[387070692,1758559837188,-480.0,0.00020821,2]
[387070694,1758559837198,-755.15,0.00020821,2]
[387070696,1758559837207,-480.0,0.00020821,2]
[387070699,1758559837217,-480.0,0.00020821,2]
[387070701,1758559837227,-480.0,0.00020821,2]
[387070703,1758559837241,-650.14,0.00020821,2]
[387070706,1758559837259,-480.0,0.00020821,2]
[387070708,1758559837268,-675.96,0.00020821,2]
[387070710,1758559837278,-578.45,0.00020821,2]
[387070712,1758559837288,-1211.88458911,0.00020919,2]
[387070714,1758559837297,-5587.35030654,0.00020972,2]
[387070716,1758559837307,-168.0,0.00021065,2]
[387070718,1758559837316,-480.0,0.00021095,2]
[387070720,1758559837325,-1531.99,0.00021095,2]
[387070722,1758559837335,-480.0,0.00021095,2]
[387070724,1758559837344,-489.92,0.00021095,2]
[387070726,1758559837353,-984.69,0.00021095,2]
[387070728,1758559837363,-3142.03,0.00021095,2]
[387070730,1758559837373,-480.0,0.00021095,2]
[387070732,1758559837382,-480.0,0.00021095,2]
[387070734,1758559837391,-480.0,0.00021095,2]
[387070736,1758559837400,-480.0,0.00021095,2]
[387070738,1758559837409,-480.0,0.00021095,2]
[387070740,1758559837419,-480.0,0.00021095,2]
[387070742,1758559837428,-1023.85,0.00021095,2]
[387070744,1758559837437,-1559.89,0.00021095,2]
[387070746,1758559837446,-480.0,0.00021095,2]
[387070748,1758559837456,-684.8,0.00021095,2]
[387070750,1758559837465,-480.0,0.00021095,2]
[387070752,1758559837474,-480.0,0.00021095,2]
[387070754,1758559837483,-480.0,0.00021095,2]
[387070756,1758559837492,-480.0,0.00021095,2]
[387070758,1758559837502,-480.0,0.00021095,2]
[387070760,1758559837510,-480.0,0.00021095,2]
[387070762,1758559837519,-480.0,0.00021095,2]
[387070764,1758559837528,-755.15,0.00021095,2]
[387070766,1758559837538,-480.0,0.00021095,2]
[387070768,1758559837547,-480.0,0.00021095,2]
[387070769,1758559837558,-480.0,0.00021095,2]
[387070771,1758559837568,-650.14,0.00021095,2]
[387070774,1758559837577,-480.0,0.00021095,2]
[387070775,1758559837587,-675.96,0.00021095,2]
[387070778,1758559837597,-473.97225945,0.00021254,2]
[387070780,1758559837607,-160.0,0.00021336,2]
[387070782,1758559837619,-480.0,0.00021369,2]
[387070784,1758559837629,-1531.99,0.00021369,2]
[387070786,1758559837638,-480.0,0.00021369,2]
[387070788,1758559837648,-489.92,0.00021369,2]
[387070789,1758559837657,-984.69,0.00021369,2]
[387070791,1758559837667,-3142.03,0.00021369,2]
[387070793,1758559837676,-480.0,0.00021369,2]
[387070796,1758559837687,-480.0,0.00021369,2]
[387070798,1758559837696,-480.0,0.00021369,2]
[387070800,1758559837706,-480.0,0.00021369,2]
[387070813,1758559837821,-480.0,0.00021369,2]
[387070815,1758559837830,-480.0,0.00021369,2]
[387070817,1758559837840,-1023.85,0.00021369,2]
[387070819,1758559837850,-1559.89,0.00021369,2]
[387070821,1758559837860,-480.0,0.00021369,2]
[387070823,1758559837891,-684.8,0.00021369,2]
[387070825,1758559837901,-480.0,0.00021369,2]
[387070827,1758559837914,-480.0,0.00021369,2]
[387070829,1758559837924,-480.0,0.00021369,2]
[387070831,1758559837934,-480.0,0.00021369,2]
[387070833,1758559837944,-480.0,0.00021369,2]
[387070835,1758559837953,-480.0,0.00021369,2]
[387070837,1758559837963,-585.95,0.00021369,2]
[387070839,1758559837973,-755.15,0.00021369,2]
[387070841,1758559837985,-480.0,0.00021369,2]
[387070843,1758559837995,-480.0,0.00021369,2]
[387070844,1758559838005,-480.0,0.00021369,2]
[387070846,1758559838015,-650.14,0.00021369,2]
[387070848,1758559838024,-480.0,0.00021369,2]
[387070851,1758559838034,-675.96,0.00021369,2]
[387070853,1758559838043,-233.55588323,0.00021637,2]
[387070855,1758559838053,-417.15472785,0.00021637,2]
[387070857,1758559838062,-5063.59132967,0.00021637,2]
[387070860,1758559838072,-160.0,0.00021637,2]
[387070862,1758559838082,-160.0,0.00021637,2]
[387070864,1758559838092,-160.0,0.00021637,2]
[387070866,1758559838101,-160.0,0.00021637,2]
[387070868,1758559838111,-4584.0,0.00021641,2]
[387070869,1758559838121,-978.0,0.00021641,2]
[387070870,1758559838131,-2159.0,0.00021641,2]
[387070871,1758559838140,-634.0,0.00021641,2]
[387070872,1758559838149,-480.0,0.00021643,2]
[387070873,1758559838159,-1531.99,0.00021643,2]
[387070874,1758559838168,-480.0,0.00021643,2]
[387070875,1758559838177,-489.92,0.00021643,2]
[387070876,1758559838187,-984.69,0.00021643,2]
[387070877,1758559838197,-3142.03,0.00021643,2]
[387070878,1758559838206,-480.0,0.00021643,2]
[387070879,1758559838216,-480.0,0.00021643,2]
[387070880,1758559838226,-480.0,0.00021643,2]
[387070882,1758559838235,-480.0,0.00021643,2]
[387070884,1758559838245,-480.0,0.00021643,2]
[387070886,1758559838254,-480.0,0.00021643,2]
[387070888,1758559838264,-1023.85,0.00021643,2]
[387070890,1758559838273,-1559.89,0.00021643,2]
[387070892,1758559838282,-480.0,0.00021643,2]
[387070894,1758559838292,-684.8,0.00021643,2]
[387070896,1758559838302,-480.0,0.00021643,2]
[387070898,1758559838318,-480.0,0.00021643,2]
[387070900,1758559838327,-480.0,0.00021643,2]
[387070902,1758559838337,-480.0,0.00021643,2]
[387070904,1758559838347,-480.0,0.00021643,2]
[387070906,1758559838357,-480.0,0.00021643,2]
[387070908,1758559838369,-755.15,0.00021643,2]
[387070910,1758559838380,-480.0,0.00021643,2]
[387070912,1758559838389,-480.0,0.00021643,2]
[387070914,1758559838399,-480.0,0.00021643,2]
[387070915,1758559838409,-650.14,0.00021643,2]
[387070917,1758559838418,-480.0,0.00021643,2]
[387070919,1758559838427,-675.96,0.00021643,2]
[387070921,1758559838436,-1211.88458911,0.00021664,2]
[387070923,1758559838447,-163.0,0.00021671,5]
[387070925,1758559838457,-933.54,0.00021777,2]
[387070927,1758559838467,-260.0,0.00021884,2]
[387070929,1758559838477,-480.0,0.00021917,2]
[387070931,1758559838487,-1531.99,0.00021917,2]
[387070933,1758559838497,-480.0,0.00021917,2]
[387070935,1758559838506,-489.92,0.00021917,2]
[387070937,1758559838516,-984.69,0.00021917,2]
[387070939,1758559838525,-3142.03,0.00021917,2]
[387070941,1758559838535,-480.0,0.00021917,2]
[387070943,1758559838544,-480.0,0.00021917,2]
[387070945,1758559838553,-480.0,0.00021917,2]
[387070947,1758559838563,-480.0,0.00021917,2]
[387070949,1758559838572,-480.0,0.00021917,2]
[387070951,1758559838582,-480.0,0.00021917,2]
[387070953,1758559838591,-1023.85,0.00021917,2]
[387070955,1758559838601,-1559.89,0.00021917,2]
[387070957,1758559838610,-480.0,0.00021917,2]
[387070959,1758559838622,-684.8,0.00021917,2]
[387070961,1758559838633,-480.0,0.00021917,2]
[387070963,1758559838642,-480.0,0.00021917,2]
[387070965,1758559838651,-480.0,0.00021917,2]
[387070967,1758559838661,-480.0,0.00021917,2]
[387070969,1758559838671,-480.0,0.00021917,2]
[387070971,1758559838680,-480.0,0.00021917,2]
[387070973,1758559838690,-755.15,0.00021917,2]
[387070975,1758559838699,-272.5099704,0.00021917,2]
[387070977,1758559838710,-480.0,0.00021917,2]
[387070979,1758559838720,-480.0,0.00021917,2]
[387070981,1758559838729,-650.14,0.00021917,2]
[387070983,1758559838739,-480.0,0.00021917,2]
[387070985,1758559838749,-675.96,0.00021917,2]
[387070987,1758559838759,-496.859,0.00021922,2]
[387070989,1758559838769,-2284.25,0.00022,7]
[387070991,1758559838778,-159.65,0.00022,2]
[387070993,1758559838787,-5587.35030654,0.00022044,2]
[387070995,1758559838797,-874.8700678,0.0002211,2]
[387070997,1758559838806,-480.0,0.00022191,2]
[387070999,1758559838816,-1531.99,0.00022191,2]
[387071001,1758559838825,-480.0,0.00022191,2]
[387071003,1758559838836,-489.92,0.00022191,2]
[387071005,1758559838846,-984.69,0.00022191,2]
[387071007,1758559838855,-3142.03,0.00022191,2]
[387071009,1758559838866,-480.0,0.00022191,2]
[387071010,1758559838875,-480.0,0.00022191,2]
[387071012,1758559838885,-480.0,0.00022191,2]
[387071014,1758559838895,-480.0,0.00022191,2]
[387071016,1758559838905,-480.0,0.00022191,2]
[387071018,1758559838918,-480.0,0.00022191,2]
[387071020,1758559838928,-1023.85,0.00022191,2]
[387071022,1758559838938,-1559.89,0.00022191,2]
[387071024,1758559838948,-480.0,0.00022191,2]
[387071026,1758559838959,-684.8,0.00022191,2]
[387071028,1758559838969,-480.0,0.00022191,2]
[387071030,1758559838979,-480.0,0.00022191,2]
[387071032,1758559838989,-552.55746698,0.00022191,2]
[387071034,1758559838999,-480.0,0.00022191,2]
[387071036,1758559839008,-480.0,0.00022191,2]
[387071038,1758559839018,-480.0,0.00022191,2]
[387071040,1758559839027,-755.15,0.00022191,2]
[387071042,1758559839037,-480.0,0.00022191,2]
[387071044,1758559839046,-480.0,0.00022191,2]
[387071046,1758559839056,-650.14,0.00022191,2]
[387071048,1758559839065,-480.0,0.00022191,2]
[387071050,1758559839075,-675.96,0.00022191,2]
[387071052,1758559839084,-1211.88458911,0.0002241,2]
[387071054,1758559839094,-360.0,0.00022432,2]
[387071056,1758559839106,-480.0,0.00022465,2]
[387071058,1758559839118,-1531.99,0.00022465,2]
[387071060,1758559839128,-480.0,0.00022465,2]
[387071062,1758559839139,-489.92,0.00022465,2]
[387071064,1758559839148,-984.69,0.00022465,2]
[387071066,1758559839158,-3142.03,0.00022465,2]
[387071068,1758559839168,-480.0,0.00022465,2]
[387071070,1758559839177,-480.0,0.00022465,2]
[387071072,1758559839187,-480.0,0.00022465,2]
[387071074,1758559839196,-480.0,0.00022465,2]
[387071076,1758559839206,-480.0,0.00022465,2]
[387071078,1758559839215,-480.0,0.00022465,2]
[387071081,1758559839225,-1023.85,0.00022465,2]
[387071083,1758559839235,-1559.89,0.00022465,2]
[387071085,1758559839244,-480.0,0.00022465,2]
[387071087,1758559839254,-684.8,0.00022465,2]
[387071089,1758559839264,-480.0,0.00022465,2]
[387071091,1758559839273,-480.0,0.00022465,2]
[387071094,1758559839283,-480.0,0.00022465,2]
[387071097,1758559839293,-480.0,0.00022465,2]
[387071100,1758559839303,-480.0,0.00022465,2]
[387071103,1758559839312,-755.15,0.00022465,2]
[387071106,1758559839322,-480.0,0.00022465,2]
[387071109,1758559839331,-480.0,0.00022465,2]
[387071112,1758559839341,-650.14,0.00022465,2]
[387071115,1758559839350,-577.8130671,0.00022465,2]
[387071118,1758559839360,-675.96,0.00022465,2]
[387071121,1758559839371,-900.5451629,0.000225,4]
[387071124,1758559839381,-490.85508618,0.00022523,2]
[387071127,1758559839391,-587.0,0.000226,2]
[387071130,1758559839401,-480.0,0.00022739,2]
[387071133,1758559839411,-1531.99,0.00022739,2]
[387071136,1758559839420,-480.0,0.00022739,2]
[387071139,1758559839431,-489.92,0.00022739,2]
[387071142,1758559839441,-984.69,0.00022739,2]
[387071145,1758559839450,-3142.03,0.00022739,2]
[387071148,1758559839460,-480.0,0.00022739,2]
[387071151,1758559839469,-480.0,0.00022739,2]
[387071154,1758559839479,-480.0,0.00022739,2]
[387071157,1758559839489,-480.0,0.00022739,2]
[387071160,1758559839499,-480.0,0.00022739,2]
[387071163,1758559839509,-1023.85,0.00022739,2]
[387071166,1758559839518,-1559.89,0.00022739,2]
[387071169,1758559839528,-368.96765582,0.00022739,2]
[387071172,1758559839538,-684.8,0.00022739,2]
[387071175,1758559839547,-480.0,0.00022739,2]
[387071178,1758559839556,-480.0,0.00022739,2]
[387071181,1758559839566,-480.0,0.00022739,2]
[387071184,1758559839575,-480.0,0.00022739,2]
[387071187,1758559839585,-480.0,0.00022739,2]
[387071190,1758559839594,-755.15,0.00022739,2]
[387071193,1758559839603,-480.0,0.00022739,2]
[387071196,1758559839613,-480.0,0.00022739,2]
[387071199,1758559839623,-650.14,0.00022739,2]
[387071202,1758559839632,-675.96,0.00022739,2]
[387071205,1758559839641,-151.0,0.000228,5]
[387071208,1758559839651,-168.0,0.00022831,2]
[387071211,1758559839660,-291.0,0.00022851,2]
[387071214,1758559839671,-291.0,0.00022882,2]
[387071217,1758559839681,-159.65,0.00022901,2]
[387071220,1758559839691,-460.0,0.0002298,2]
[387071222,1758559839701,-372.13010335,0.00023013,2]
[387071225,1758559839711,-1531.99,0.00023013,2]
[387071228,1758559839720,-480.0,0.00023013,2]
[387071231,1758559839731,-489.92,0.00023013,2]
[387071234,1758559839740,-984.69,0.00023013,2]
[387071237,1758559839749,-3142.03,0.00023013,2]
[387071240,1758559839759,-480.0,0.00023013,2]
[387071243,1758559839769,-480.0,0.00023013,2]
[387071246,1758559839779,-353.14,0.00023013,2]
[387071249,1758559839788,-480.0,0.00023013,2]
[387071252,1758559839797,-480.0,0.00023013,2]
[387071255,1758559839807,-1023.85,0.00023013,2]
[387071258,1758559839817,-1559.89,0.00023013,2]
[387071261,1758559839827,-684.8,0.00023013,2]
[387071264,1758559839837,-480.0,0.00023013,2]
[387071267,1758559839847,-480.0,0.00023013,2]
[387071270,1758559839857,-340.14,0.00023013,2]
[387071273,1758559839867,-480.0,0.00023013,2]
[387071276,1758559839877,-480.0,0.00023013,2]
[387071279,1758559839887,-755.15,0.00023013,2]
[387071282,1758559839897,-605.95005315,0.00023013,2]
[387071285,1758559839906,-480.0,0.00023013,2]
[387071288,1758559839919,-650.14,0.00023013,2]
[387071291,1758559839928,-675.96,0.00023013,2]
[387071294,1758559839938,-246.13635362,0.00023014,2]
[387071297,1758559839947,-151.0,0.00023014,2]
[387071300,1758559839957,-151.0,0.00023014,2]
[387071304,1758559839967,-500.0,0.00023014,2]
[387071307,1758559839976,-151.0,0.00023014,2]
[387071310,1758559839986,-151.0,0.00023014,2]
[387071313,1758559839995,-2284.25,0.000231,7]
[387071316,1758559840005,-2864.2269068,0.00023104,2]
[387071319,1758559840016,-5587.35030654,0.00023116,2]
[387071321,1758559840025,-225.18232297,0.0002312,2]
[387071323,1758559840035,-4072.84016715,0.0002314,2]
[387071325,1758559840044,-473.97225945,0.00023155,2]
[387071327,1758559840054,-1211.88458911,0.00023155,2]
[387071329,1758559840063,-293.85068442,0.00023203,2]
[387071331,1758559840072,-613394.47678482,0.0002322,2]
[387071345,1758559840204,-578.45,0.00021095,2]
[387071347,1758559840214,-578.45,0.00021369,2]
[387071349,1758559840223,-578.45,0.00021643,2]
[387071354,1758559840258,-578.45,0.00021917,2]
[387071356,1758559840267,-578.45,0.00022191,2]
[387071358,1758559840277,-578.45,0.00022465,2]
[387071360,1758559840287,-578.45,0.00022739,2]
[387071362,1758559840297,-578.45,0.00023013,2]
[387071364,1758559840307,-780.90309,0.0002322,2]
[387071366,1758559840318,-284.53085493,0.0002322,2]
[387071368,1758559840329,-16449.99049431,0.0002322,2]
[387071370,1758559840339,-1130.04135137,0.0002322,2]
[387071373,1758559840350,-5105.4704378,0.0002322,2]
[387071375,1758559840361,-39430.67579929,0.0002322,2]
[387071377,1758559840373,-859.77314104,0.0002322,2]
[387071379,1758559840423,-1859.62389554,0.0002322,2]
[387071380,1758559840435,-512.53526965,0.0002322,2]
[387071381,1758559840447,-12399.46290864,0.0002322,2]
[387071382,1758559840458,-9349.12945888,0.0002322,2]
[387071498,1758559842987,-574.5,0.00019178,2]
[387071500,1758559842998,-480.0,0.00019178,2]
[387071502,1758559843009,-574.5,0.00019452,2]
[387071504,1758559843018,-480.0,0.00019452,2]
[387071507,1758559843028,-574.5,0.00019726,2]
[387071511,1758559843037,-480.0,0.00019726,2]
[387071514,1758559843047,-574.5,0.0002,2]
[387071516,1758559843056,-480.0,0.0002,2]
[387071518,1758559843066,-574.5,0.00020273,2]
[387071520,1758559843076,-480.0,0.00020273,2]
[387071522,1758559843085,-126.10502774,0.00020547,2]
[387071559,1758559845850,-448.39497226,0.00020547,2]
[387071560,1758559845861,-480.0,0.00020547,2]
[387071561,1758559845872,-574.5,0.00020821,2]
[387071562,1758559845883,-480.0,0.00020821,2]
[387071563,1758559845893,-574.5,0.00021095,2]
[387071564,1758559845902,-480.0,0.00021095,2]
[387071565,1758559845917,-574.5,0.00021369,2]
[387071566,1758559845927,-569.42374591,0.00021369,2]
[387071567,1758559845936,-574.5,0.00021643,2]
[387071568,1758559845946,-574.5,0.00021917,2]
[387071569,1758559845956,-574.5,0.00022191,2]
[387071570,1758559845966,-574.5,0.00022465,2]
[387071571,1758559845976,-574.5,0.00022739,2]
[387071572,1758559845986,-574.5,0.00023013,2]
[387071573,1758559845997,-647510.36965064,0.0002322,2]
[387071574,1758559846006,-249.745,0.00023255,2]
[387071576,1758559846015,-500.0,0.00023287,2]
[387071577,1758559846025,-984.69,0.00023287,2]
[387071578,1758559846035,-3142.03,0.00023287,2]
[387071579,1758559846045,-480.0,0.00023287,2]
[387071580,1758559846054,-480.0,0.00023287,2]
[387071581,1758559846064,-480.0,0.00023287,2]
[387071582,1758559846073,-1023.85,0.00023287,2]
[387071583,1758559846083,-1559.89,0.00023287,2]
[387071584,1758559846092,-684.8,0.00023287,2]
[387071585,1758559846102,-480.0,0.00023287,2]
[387071586,1758559846111,-480.0,0.00023287,2]
[387071587,1758559846123,-480.0,0.00023287,2]
[387071588,1758559846132,-480.0,0.00023287,2]
[387071589,1758559846142,-755.15,0.00023287,2]
[387071590,1758559846152,-480.0,0.00023287,2]
[387071591,1758559846161,-3632.5,0.00023287,2]
[387071592,1758559846171,-650.14,0.00023287,2]
[387071593,1758559846180,-675.96,0.00023287,2]
[387071594,1758559846190,-578.45,0.00023287,2]
[387071595,1758559846201,-574.5,0.00023287,2]
[387071596,1758559846211,-500.0,0.00023288,2]
[387071597,1758559846220,-151.0,0.00023288,2]
[387071598,1758559846229,-211.852,0.00023337,7]
[387071599,1758559846239,-211.852,0.00023337,7]
[387071600,1758559846249,-211.852,0.00023337,7]
[387071601,1758559846259,-211.852,0.00023475,7]
[387071602,1758559846268,-211.852,0.00023475,7]
[387071603,1758559846277,-211.852,0.00023475,7]
[387071604,1758559846287,-211.852,0.00023475,7]
[387071605,1758559846297,-241.63106039,0.00023476,14]
[387071606,1758559846306,-241.63106039,0.00023476,14]
[387071607,1758559846315,-584.82087287,0.000235,2]
[387071608,1758559846325,-3000.0,0.000235,2]
[387071609,1758559846334,-3000.0,0.0002351,2]
[387071610,1758559846343,-3000.0,0.0002352,2]
[387071611,1758559846353,-560.0,0.00023527,2]
[387071612,1758559846362,-3000.0,0.0002353,2]
[387071613,1758559846374,-3000.0,0.0002354,2]
[387071614,1758559846384,-500.0,0.00023543,2]
[387071615,1758559846393,-3000.0,0.0002355,2]
[387071616,1758559846402,-500.0,0.0002355,2]
[387071617,1758559846412,-3000.0,0.0002356,2]
[387071618,1758559846422,-200.0,0.00023561,2]
[387071619,1758559846432,-200.0,0.00023561,2]
[387071620,1758559846442,-200.0,0.00023561,2]
[387071621,1758559846451,-200.0,0.00023561,2]
[387071622,1758559846461,-292.32072441,0.00023561,2]
[387071623,1758559846471,-984.69,0.00023561,2]
[387071624,1758559846480,-3142.03,0.00023561,2]
[387071625,1758559846490,-480.0,0.00023561,2]
[387071626,1758559846499,-480.0,0.00023561,2]
[387071627,1758559846508,-480.34,0.00023561,2]
[387071628,1758559846518,-1023.85,0.00023561,2]
[387071629,1758559846527,-1559.89,0.00023561,2]
[387071630,1758559846537,-684.8,0.00023561,2]
[387071631,1758559846547,-480.0,0.00023561,2]
[387071632,1758559846556,-480.0,0.00023561,2]
[387071633,1758559846565,-406.66,0.00023561,2]
[387071634,1758559846575,-480.0,0.00023561,2]
[387071635,1758559846584,-755.15,0.00023561,2]
[387071636,1758559846594,-586.54758871,0.00023561,2]
[387071637,1758559846604,-650.14,0.00023561,2]
[387071638,1758559846613,-675.96,0.00023561,2]
[387071639,1758559846627,-578.45,0.00023561,2]
[387071640,1758559846636,-574.5,0.00023561,2]
[387071641,1758559846646,-500.0,0.00023562,2]
[387071642,1758559846655,-198.0,0.00023562,2]
[387071643,1758559846665,-3000.0,0.0002357,2]
[387071644,1758559846674,-500.0,0.00023574,2]
[387071645,1758559846684,-3000.0,0.0002358,2]
[387071646,1758559846695,-3000.0,0.0002359,2]
[387071647,1758559846706,-5552.698914,0.000236,2]
[387071648,1758559846715,-211.852,0.00023612,7]
[387071649,1758559846724,-150.0,0.000237,2]
[387071650,1758559846735,-150.0,0.000237,2]
[387071651,1758559846745,-248.48,0.000237,2]
[387071652,1758559846755,-211.852,0.0002375,14]
[387071653,1758559846764,-241.63106039,0.00023751,21]
[387071654,1758559846773,-241.63106039,0.00023751,21]
[387071655,1758559846781,-52950.10448561,0.000238,2]
[387071656,1758559846790,-159.65,0.00023802,2]
[387071657,1758559846799,-4072.84016712,0.00023803,2]
[387071658,1758559846808,-249.745,0.00023808,7]
[387071659,1758559846817,-249.745,0.00023808,7]